[Event "Sardinia World Festival-A 2024"]
[Site "Orosei"]
[Date "2024.04.27"]
[Round "1.12"]
[White "Andreev, Konstantin"]
[Black "Moroni, Luca Jr"]
[Result "1/2-1/2"]
[ECO "B06"]
[WhiteElo "2244"]
[BlackElo "2580"]
[Annotator "TA"]
[PlyCount "159"]
[EventDate "2024.04.26"]
[EventType "swiss"]
[EventCountry "ITA"]
[SourceTitle "playchess.com"]
[Source "ChessBase"]
[SourceQuality "1"]
[TimeControl "40/5400+30:1800+30"]

{[%evp 52,159,-11,-20,-25,-137,-75,-79,-62,-63,-61,-71,-67,-56,0,0,-15,-85,-77,-71,-75,-75,-79,-79,0,-6,0,0,0,0,0,0,0,-23,0,0,0,0,0,0,0,0,0,0,0,0,0,0,0,0,0,0,0,0,0,0,0,0,0,0,8,0,0,0,0,0,0,0,0,0,0,0,0,0,0,0,0,0,0,0,0,0,0,0,0,0,0,0,0,0,0,0,0,0,0,0,0,0,0,0,0,0,0,0,0,0,0,0,0,0]} 1. e4 {[%emt 0:00:03]} g6 {[%emt 0:00:03]} 2. d4 {[%emt 0:00:10]} Bg7 {[%emt 0:00:04]} 3. Nc3 {[%emt 0:00:07]} a6 {[%emt 0:00:03]} 4. Be3 {[%emt 0:00:25]} b5 {[%emt 0:00:09]} 5. Qd2 {[%emt 0:00:10]} Bb7 {[%emt 0:00:08]} 6. f3 {[%emt 0:00:05] B06: Modern Defence.} d6 {[%emt 0:00:12]} 7. h4 {[%emt 0:00:22]} h5 {[%emt 0:00:16]} 8. O-O-O {[%emt 0:00:15]} Nd7 {[%emt 0:00:15]} 9. Nh3 {[%emt 0:00:53]} Nb6 {[%emt 0:02:09]} 10. Bd3 {[%emt 0:05:53]} Nf6 {[%emt 0:03:44]} 11. e5 $146 {[%emt 0:09:36]} ({Predecessor:} 11. Ng5 b4 12. Ne2 a5 13. Nf4 Nh7 14. Nge6 fxe6 15. Nxe6 Qd7 16. Nxg7+ Kf7 17. Bh6 {½-½ Postnikov,D (2360)-Papasimakopoulos,A (2374) Titled Tuesday intern op 25th Apr Early blitz 2023 (7)}) 11... b4 {[%emt 0:08:35]} 12. Ne2 {[%emt 0:01:15]} Nfd5 {[%emt 0:03:42]} 13. e6 {[%emt 0:00:59]} fxe6 {[%emt 0:02:06]} 14. Ng5 {[%emt 0:11:37]} Kd7 {[%emt 0:07:09]} 15. Nf7 {[%emt 0:00:33]} Qf8 {[%emt 0:01:13]} 16. Nxh8 {[%emt 0:00:24]} Qxh8 {[%emt 0:00:16]} 17. Kb1 {[%emt 0:18:11]} c5 {[%emt 0:10:37]} 18. Bg5 {[%emt 0:17:42]} cxd4 {[%emt 0:09:01]} 19. Nf4 {[%emt 0:04:02]} Nxf4 {[%emt 0:14:52]} 20. Qxf4 {[%emt 0:00:19]} Rf8 {[%emt 0:00:10]} 21. Qg3 {[%emt 0:02:35]} Nd5 {[%emt 0:04:47]} 22. Rhe1 {[%emt 0:04:14]} Be5 {[%emt 0:00:45]} 23. Qh3 {[%emt 0:00:55]} Qg8 {[%emt 0:00:08]} 24. Re2 {[%emt 0:01:09]} Bf4 {[%emt 0:08:08]} 25. Rde1 {[%emt 0:02:47]} Ne3 {[%emt 0:06:14]} 26. Bxf4 {[%emt 0:04:09]} Rxf4 {[%emt 0:00:25]} 27. Qg3 $1 {[%emt 0:00:06]} Rf6 {[%emt 0:00:24]} 28. f4 {[%emt 0:03:25]} (28. Qg5 $11) 28... Qc8 {[%emt 0:09:01]} ({Better is} 28... Qa8 $1 {[%cal Re3g2]} 29. Qg5 (29. Bxg6 $2 Qg8 $19) 29... Nxg2 30. Rxe6 (30. Rxg2 $2 Bxg2 31. Bxg6 Qd5 $19) 30... Rxe6 31. Rxe6 Kxe6 32. f5+ Kd7 33. fxg6 Bd5 34. Bf5+ e6) 29. Qg5 $17 {[%emt 0:02:53]} Qc5 {[%emt 0:01:07]} 30. g3 {[%emt 0:00:09]} e5 $1 {[%emt 0:02:12]} 31. fxe5 {[%emt 0:04:37]} Qxe5 {[%emt 0:01:24]} 32. Kc1 {[%emt 0:01:54]} Qxg5 {[%emt 0:04:15]} 33. hxg5 {[%emt 0:00:05]} Rf3 {[%emt 0:00:02]} 34. c3 {[%emt 0:01:53]} (34. Bxg6 $11 {keeps the balance.} Rxg3 35. Bxh5) 34... bxc3 $17 {[%emt 0:00:53]} 35. bxc3 {[%emt 0:00:00] [#]} Nd5 $1 {[%emt 0:00:56]} ({Of course not} 35... Rxg3 $6 36. cxd4 Nd5 37. Bxg6 $14) 36. Bxg6 {[%emt 0:01:23]} Rxc3+ {[%emt 0:00:04]} (36... dxc3 37. Be4 Rxg3 38. Rg2 $18) 37. Kd2 {[%emt 0:00:47] [#]} Rxg3 {[%emt 0:00:33]} ({Black should play} 37... Ne3 $1 $17 {[%cal Re3c4] Hoping for ...Nc4+.} 38. Rxe3 Rxe3 39. Rxe3 dxe3+ 40. Kxe3 Bd5) 38. Be4 $1 $11 {[%emt 0:01:09]} Rxg5 {[%emt 0:02:27]} 39. Bxd5 {[%emt 0:00:05]} Bxd5 {[%emt 0:00:08]} 40. Rxe7+ {[%emt 0:00:04]} Kc6 {[%emt 0:00:08]} 41. Rc1+ {[%emt 0:30:32]} Kb5 {[%emt 0:30:30]} 42. Rb1+ {[%emt 0:01:30]} Ka4 {[%emt 0:00:08]} 43. Kd3 {[%emt 0:00:37]} h4 {[%emt 0:01:25]} 44. Kxd4 {[%emt 0:01:15]} h3 {[%emt 0:00:00]} 45. Rh7 {[%emt 0:00:00]} Bg2 {[%emt 0:00:00]} 46. Rb6 {[%emt 0:00:00]} Rd5+ {[%emt 0:00:00]} 47. Kc3 {[%emt 0:00:00]} Ka5 {[%emt 0:00:00]} 48. Rb3 {[%emt 0:00:00]} Rf5 {[%emt 0:00:00]} 49. Rh6 {[%emt 0:00:00]} Rf2 {[%emt 0:00:00]} 50. Rb2 {[%emt 0:00:00]} Rf3+ {[%emt 0:00:00]} 51. Kd4 {[%emt 0:00:00]} Rf4+ {[%emt 0:00:00]} 52. Kc3 {[%emt 0:00:00]} d5 {[%emt 0:00:00]} 53. Rbb6 {[%emt 0:00:00]} d4+ {[%emt 0:00:00]} 54. Kd2 {[%emt 0:00:00]} Rf2+ {[%emt 0:03:32]} 55. Ke1 {[%emt 0:00:00]} Rc2 {[%emt 0:00:45]} (55... Rxa2 $2 {is the wrong capture.} 56. Rxa6+ Kb4 57. Rxa2 $18) 56. Rxa6+ {[%emt 0:00:00]} Kb5 {[%emt 0:00:58]} 57. Ra3 {[%emt 0:00:00]} Kb4 {[%emt 0:00:54]} 58. Raxh3 {[%emt 0:00:00]} Bxh3 {[%emt 0:00:18]} 59. Rxh3 {[%emt 0:00:00]} Rxa2 {[%emt 0:00:46]} 60. Kd1 {[%emt 0:00:00]} Kc4 {[%emt 0:00:03]} 61. Rg3 {[%emt 0:00:00]} Rf2 {[%emt 0:00:14]} 62. Rh3 {[%emt 0:00:00]} Kd5 {[%emt 0:00:04]} 63. Rh5+ {[%emt 0:00:00]} Ke4 {[%emt 0:00:18]} 64. Rh4+ {[%emt 0:00:00]} Kd3 {[%emt 0:00:03]} 65. Rh3+ {[%emt 0:00:00]} Kc4 {[%emt 0:00:02]} 66. Rg3 {[%emt 0:00:00]} Rh2 {[%emt 0:00:09]} 67. Rf3 {[%emt 0:00:00]} Kd5 {[%emt 0:00:24]} 68. Ra3 {[%emt 0:00:00]} Ke4 {[%emt 0:00:05]} 69. Rb3 {[%emt 0:00:00]} Rh1+ {[%emt 0:00:17]} 70. Kd2 {[%emt 0:00:00]} Rf1 {[%emt 0:00:12]} 71. Rh3 {[%emt 0:00:00]} Rf2+ {[%emt 0:00:02]} 72. Kd1 {[%emt 0:00:00]} Kd5 {[%emt 0:00:07]} 73. Rh5+ {[%emt 0:00:00]} Kc4 {[%emt 0:00:03]} 74. Rh3 {[%emt 0:00:00]} Rf1+ {[%emt 0:00:04]} 75. Kd2 {[%emt 0:00:00]} Rb1 {[%emt 0:00:03]} 76. Rg3 {[%emt 0:00:00]} Rb2+ {[%emt 0:00:03]} 77. Kd1 {[%emt 0:00:00]} Rb3 {[%emt 0:00:02]} 78. Rxb3 {[%emt 0:00:14]} Kxb3 {[%emt 0:00:03]} 79. Kd2 {[%emt 0:00:05]} d3 {[%emt 0:00:02]} 80. Kxd3 {[%emt 0:00:05]} 1/2-1/2

[Event "Sardinia World Festival-A 2024"]
[Site "Orosei"]
[Date "2024.04.27"]
[Round "1.13"]
[White "Gurel, Ediz"]
[Black "Kurmangaliyeva, Liya"]
[Result "1-0"]
[ECO "C60"]
[WhiteElo "2578"]
[BlackElo "2230"]
[Annotator "TA"]
[PlyCount "121"]
[EventDate "2024.04.26"]
[EventType "swiss"]
[EventCountry "ITA"]
[SourceTitle "playchess.com"]
[Source "ChessBase"]
[SourceQuality "1"]
[TimeControl "40/5400+30:1800+30"]

{[%evp 45,121,0,14,5,15,0,0,0,0,0,12,-7,25,31,134,105,130,120,175,139,130,93,119,34,43,42,42,14,37,8,8,8,15,0,111,99,64,75,116,104,151,133,167,75,171,143,206,210,270,260,238,251,253,251,317,327,337,302,266,275,352,357,427,445,442,427,409,362,667,649,1079,1057,975,916,894,894,29974,29975]} 1. e4 {[%emt 0:00:06]} e5 {[%emt 0:00:22]} 2. Nf3 {[%emt 0:00:15]} Nc6 {[%emt 0:00:16]} 3. Bb5 {[%emt 0:00:19]} a6 {[%emt 0:00:48]} 4. Ba4 {[%emt 0:00:18]} Nge7 {[%emt 0:01:22]} 5. O-O {[%emt 0:01:29]} Ng6 {[%emt 0:00:18]} 6. c3 {[%emt 0:01:34]} d5 {[%emt 0:00:29]} 7. exd5 {[%emt 0:05:11]} Qxd5 {[%emt 0:00:07]} 8. d4 {[%emt 0:00:44]} Bg4 {[%emt 0:02:13]} 9. Bb3 {[%emt 0:02:45]} Bxf3 {[%emt 0:02:48]} 10. Bxd5 {[%emt 0:00:10]} Bxd1 {[%emt 0:00:06]} 11. Rxd1 {[%emt 0:00:11]} O-O-O {[%emt 0:00:40]} 12. Bxf7 {[%emt 0:05:49]} exd4 {[%emt 0:00:21]} 13. Bg5 {[%emt 0:01:12]} Be7 {[%emt 0:02:07]} 14. Bxe7 {[%emt 0:00:06]} Ngxe7 {[%emt 0:00:31]} 15. cxd4 {[%emt 0:00:10]} Nxd4 {[%emt 0:19:22]} 16. Nc3 {[%emt 0:00:14]} Rhf8 {[%emt 0:06:45]} 17. Bc4 {[%emt 0:00:17]} Nec6 {[%emt 0:05:12]} 18. Rac1 {[%emt 0:05:23]} Ne5 {[%emt 0:07:51]} 19. Bf1 {[%emt 0:00:51]} Rf6 {[%emt 0:10:28]} 20. f3 {[%emt 0:07:42]} Rb6 {[%emt 0:09:56]} 21. b3 {[%emt 0:05:20]} g5 {[%emt 0:00:42]} 22. Kf2 {[%emt 0:06:28]} Re6 {[%emt 0:07:20]} 23. h3 {[%emt 0:10:05]} h5 {[%emt 0:10:15]} 24. Ne4 {[%emt 0:08:49]} g4 {[%emt 0:02:27]} 25. f4 {[%emt 0:08:22]} Ng6 {[%emt 0:01:01]} 26. Ng5 {[%emt 0:04:57]} g3+ {[%emt 0:01:10]} 27. Kxg3 {[%emt 0:00:09]} Rf6 {[%emt 0:00:14]} 28. Kh2 {[%emt 0:03:01]} Rxf4 {[%emt 0:02:13]} 29. Bc4 {[%emt 0:03:12]} Nf8 {[%emt 0:06:55]} (29... Rd6 $14) 30. Rf1 $16 {[%emt 0:01:00]} Rxf1 {[%emt 0:00:39]} 31. Rxf1 {[%emt 0:00:02]} (31. Bxf1 Rd5 32. Re1 Rxg5) 31... Nd7 {[%emt 0:00:28]} (31... Kd7 $16 32. Rf4 Ke7) 32. Bf7 {[%emt 0:02:37]} Rh8 {[%emt 0:00:24]} 33. Rf4 {[%emt 0:05:58]} c5 {[%emt 0:00:19]} 34. Bd5 {[%emt 0:02:21]} ({White should play} 34. Rh4 $16) 34... Rh6 {[%emt 0:00:48]} 35. Ne4 {[%emt 0:02:02]} b6 {[%emt 0:00:21]} 36. Rf7 {[%emt 0:00:14]} Kd8 {[%emt 0:00:39]} 37. Kg3 {[%emt 0:01:56]} h4+ {[%emt 0:00:24]} 38. Kf4 {[%emt 0:00:47]} Rg6 {[%emt 0:00:04]} 39. Rh7 {[%emt 0:01:44]} Nf6 {[%emt 0:00:56]} (39... Rxg2 40. Rxd7+ (40. Rxh4 Rxa2 41. Rh8+ Kc7 $11) 40... Kxd7 41. Nxc5+ bxc5 42. Bxg2 $16) (39... Nf8 $11 {remains equal.} 40. Rf7 (40. Rxh4 Rxg2 41. Rg4 Rxa2 $11) 40... Nd7) 40. Nxf6 {[%emt 0:03:01]} (40. Rxh4 $2 Nxd5+ 41. Ke5 Ne7 42. Rh8+ Kc7 $19) 40... Rxf6+ {[%emt 0:00:05]} 41. Kg4 {[%emt 0:32:33]} Rd6 {[%emt 0:12:54]} 42. Bf7 {[%emt 0:00:00]} b5 {[%emt 0:02:35]} ({Better is} 42... Nc6) 43. Kxh4 $16 {[%emt 0:00:00]} (43. Rxh4 Ke7 44. Rh7 Rf6 45. Bd5+ Kd6 $14) 43... Nf5+ {[%emt 0:07:06]} 44. Kh5 {[%emt 0:00:00]} (44. Kg5 $18 Ne3 45. g4) 44... Ng3+ {[%emt 0:03:29] [#]} (44... Ne3 $16) 45. Kg4 $1 $18 {[%emt 0:00:00]} Ne4 {[%emt 0:00:50]} (45... Nf1 $16 {keeps fighting.}) 46. Kf5 $18 {[%emt 0:00:00]} Nf6 {[%emt 0:05:48]} 47. Rg7 {[%emt 0:00:00]} Nd7 {[%emt 0:00:08]} 48. h4 {[%emt 0:00:00]} Rf6+ {[%emt 0:00:48]} 49. Ke4 {[%emt 0:00:00]} Rh6 {[%emt 0:00:58]} 50. g3 {[%emt 0:00:00]} Ke7 {[%emt 0:00:34]} 51. Bg6+ {[%emt 0:00:00]} Kd6 {[%emt 0:00:21]} 52. Kf4 {[%emt 0:00:00]} Ne5 {[%emt 0:00:55]} 53. h5 {[%emt 0:00:00]} (53. Kg5 Rxg6+ 54. Rxg6+ Nxg6 55. Kxg6 c4 $11) 53... c4 {[%emt 0:00:15]} 54. bxc4 {[%emt 0:00:00]} (54. Kg5 Rh8 55. bxc4 (55. h6 Nxg6 56. Rxg6+ Kd5 $16) 55... bxc4 $18) 54... bxc4 {[%emt 0:00:04]} 55. Kg5 {[%emt 0:00:00]} Rh8 {[%emt 0:00:57]} 56. Be4 {[%emt 0:00:00]} c3 $2 {[%emt 0:00:29]} (56... Rf8 57. h6 Nf7+ 58. Kh5 Nxh6 59. Kxh6 Rf2) 57. h6 $18 {[%emt 0:00:00]} Nf3+ {[%emt 0:00:33]} 58. Bxf3 {[%emt 0:00:33]} c2 {[%emt 0:00:05]} 59. Rg6+ {[%emt 0:00:01]} Kd7 {[%emt 0:00:11]} 60. Rc6 $1 {[%emt 0:00:06]} (60. Rxa6 $2 c1=Q+ (60... c1=B+ $2 61. Kh5 $18) 61. Kh4 Qe3 (61... Rxh6+ $2 62. Rxh6 Qxh6+ 63. Kg4 $19) 62. Bg4+ Kc7 $19) 60... Rc8 {[%emt 0:00:09] [#]} 61. Rxc2 $1 {[%emt 0:00:27]} (61. Rxa6 c1=Q+ (61... c1=B+ $2 {is the wrong capture.} 62. Kh5 $18) 62. Kh5 Rc5+ 63. Kh4 Rc4+ (63... Qg5+ $2 64. Kh3 $19) 64. Kh5 Qe3 (64... Rc5+ $2 65. Kh4 $19) 65. Bg4+ Rxg4 66. Kxg4 Qe2+ 67. Kg5 Qb5+ (67... Qxa6 $2 68. h7 $19) 68. Kg4 Qxa6 69. h7 Qg6+ (69... Qxa2 70. h8=Q $11) 70. Kf4 Qxh7 71. Ke5 Qc2 72. g4 Qxa2 73. g5 Qe6+ 74. Kd4 Kd6 (74... Qg4+ 75. Ke3 Qxg5+ 76. Ke4 Ke6 77. Kd4 Qd2+ 78. Ke4 Kf6 79. Kf3 Kf5 80. Kg3 Qe2 81. Kh3 Kf4 82. Kh4 Qh2#) 75. g6 Qxg6 76. Ke3 Ke5 77. Kf3 Qd3+ 78. Kg4 Qe2+ 79. Kg3 Kf5 80. Kh3 Kf4 81. Kh4 Qh2#) (61. Rxc8 $2 Kxc8 62. h7 (62. Bg4+ $2 Kd8 $19) 62... c1=Q+ $19 (62... c1=B+ $2 63. Kg6 $18)) 1-0

[Event "Sardinia World Festival-A 2024"]
[Site "Orosei"]
[Date "2024.04.27"]
[Round "1.14"]
[White "Loftgaard, Mikkel Vinh"]
[Black "Lodici, Lorenzo"]
[Result "0-1"]
[ECO "B22"]
[WhiteElo "2227"]
[BlackElo "2565"]
[Annotator "TA"]
[PlyCount "102"]
[EventDate "2024.04.26"]
[EventType "swiss"]
[EventCountry "ITA"]
[SourceTitle "playchess.com"]
[Source "ChessBase"]
[SourceQuality "1"]
[TimeControl "40/5400+30:1800+30"]

{[%evp 9,102,24,21,20,25,18,29,0,0,0,0,-37,-29,-29,-16,-25,-24,-27,-5,-6,-5,-15,0,0,12,10,13,13,8,17,10,0,3,0,0,-8,0,0,23,17,18,26,23,0,0,0,17,0,0,0,0,0,-4,-7,-5,-12,-6,-8,0,0,0,0,0,-1,-1,-1,-1,-1,-1,-1,-1,-1,-1,-1,-8,-12,-12,-15,0,-175,-138,-229,-279,-258,-264,-260,-231,-730,-729,-1031,0,-1014,-999,-1036,-998]} 1. e4 {[%emt 0:00:04]} c5 {[%emt 0:01:21]} 2. c3 {[%emt 0:01:28]} e5 {[%emt 0:00:31]} 3. Nf3 {[%emt 0:01:31]} Nc6 {[%emt 0:02:03]} 4. Bc4 {[%emt 0:05:25]} Nf6 {[%emt 0:00:06]} 5. d3 {[%emt 0:06:00]} Be7 {[%emt 0:04:33]} 6. O-O {[%emt 0:03:10]} d6 {[%emt 0:00:13]} 7. Re1 {[%emt 0:01:25]} a6 {[%emt 0:00:13]} 8. d4 {[%emt 0:01:58] White has an edge.} cxd4 {[%emt 0:04:22]} 9. cxd4 {[%emt 0:00:13]} Bg4 {[%emt 0:00:03]} 10. d5 {[%emt 0:08:08] [#]} Nd4 {[%emt 0:04:28]} 11. Be2 {[%emt 0:02:01]} (11. Nbd2 Qc8) 11... Nxe2+ {[%emt 0:03:13]} 12. Qxe2 {[%emt 0:00:11]} O-O {[%emt 0:00:12]} 13. Nbd2 {[%emt 0:04:26]} Nh5 {[%emt 0:14:49]} 14. h3 {[%emt 0:14:02]} Nf4 {[%emt 0:00:46]} 15. Qd1 {[%emt 0:01:08]} Bd7 {[%emt 0:04:15]} 16. Nf1 {[%emt 0:06:44]} Ng6 {[%emt 0:07:29]} 17. Ng3 {[%emt 0:02:03]} Nh4 {[%emt 0:01:52]} 18. Be3 {[%emt 0:03:38]} g6 {[%emt 0:01:48]} 19. Bh6 {[%emt 0:36:25]} Re8 {[%emt 0:02:22]} 20. Nxh4 {[%emt 0:00:00]} Bxh4 {[%emt 0:00:27]} 21. Qb3 {[%emt 0:00:00]} b5 {[%emt 0:03:41]} 22. Qe3 {[%emt 0:00:00]} Qf6 {[%emt 0:04:26]} 23. Rac1 {[%emt 0:00:00]} Rec8 {[%emt 0:06:07] Prevents Rc7.} 24. Rxc8+ $1 {[%emt 0:00:00]} Bxc8 {[%emt 0:00:31]} (24... Rxc8 $6 25. Qa7 Qd8 26. Qxa6 $18) 25. Rc1 {[%emt 0:00:00]} Qd8 {[%emt 0:00:21] Dodges Rc7} 26. Rc6 {[%emt 0:00:00]} Bb7 $1 {[%emt 0:06:48]} 27. Rc3 {[%emt 0:00:00]} a5 {[%emt 0:02:11]} 28. Qc1 {[%emt 0:00:00]} Rc8 {[%emt 0:00:31]} 29. Rxc8 {[%emt 0:00:00]} Qxc8 {[%emt 0:00:04]} 30. Qd2 {[%emt 0:00:00]} Bd8 {[%emt 0:01:28]} 31. Bg5 {[%emt 0:00:00]} f6 {[%emt 0:00:13]} 32. Be3 {[%emt 0:00:00]} b4 {[%emt 0:01:42]} 33. h4 {[%emt 0:00:00]} h5 {[%emt 0:09:05]} 34. Qd1 {[%emt 0:00:00]} Qd7 {[%emt 0:01:09]} 35. Qe2 {[%emt 0:00:00]} Bc8 {[%emt 0:03:09][%cal Bb7c8,Bc8d7,Bd7b5][%mdl 32]} 36. Qc4 {[%emt 0:00:00]} Qb7 {[%emt 0:00:47]} 37. Qc2 {[%emt 0:00:00]} Bd7 {[%emt 0:00:13]} 38. Qd1 {[%emt 0:00:14]} Bb5 {[%emt 0:00:41]} 39. Qd2 {[%emt 0:01:40]} Qc8 {[%emt 0:00:29]} 40. Qd1 {[%emt 0:00:30]} Qc4 {[%emt 0:00:40]} 41. b3 {[%emt 0:30:13]} Qd3 {[%emt 0:38:19]} 42. Qc1 {[%emt 0:03:55]} Qc3 {[%emt 0:00:26] And now ...Qxc1+ would win.} 43. Qd1 {[%emt 0:00:02]} Qb2 {[%emt 0:02:41]} 44. Qf3 $2 {[%emt 0:02:54]} (44. Kh2 $1 $11 {and White has nothing to worry.}) 44... Qxa2 {[%emt 0:00:33]} 45. Nxh5 {[%emt 0:00:00]} gxh5 {[%emt 0:00:00]} 46. Qf5 {[%emt 0:00:00] [#]} Qc2 $1 {[%emt 0:00:00]} ({And not} 46... Qxb3 47. Qe6+ Kg7 48. Bh6+ Kxh6 49. Qg8 $11) 47. Qg6+ {[%emt 0:00:00]} Kf8 {[%emt 0:00:00] Strongly threatening ...Qd1+.} 48. Bh6+ $2 {[%emt 0:00:00]} (48. Qh6+ Ke8 49. Qxh5+ Kd7 50. Qf7+ Kc8 51. Qe6+ Kb7 52. Kh2) 48... Ke7 $19 {[%emt 0:00:00] White must now prevent ...Qd1+.} 49. Qf5 {[%emt 0:00:00]} Qd1+ {[%emt 0:00:00]} ({Inferior is} 49... Qxb3 50. Qe6#) 50. Kh2 {[%emt 0:00:00][%csl Gd5][%cal Rf5e6]} Qg4 $1 {[%emt 0:00:00]} ({Weaker is} 50... Qxb3 51. Qe6#) 51. Qh7+ {[%emt 0:00:00]} Ke8 {[%emt 0:00:00] Weighted Error Value: White=0.42/Black=0.04 (flawless) .  Loses game:     	White=1     	---        Mistake:       	White=1     	---        Inaccurate:     	White=3     	---        OK:         	White=17    	Black=13     Best:        	White=3     	Black=1      Strong:       	White=1     	Black=2      Brilliant:      	---       	Black=1} 0-1

[Event "Sardinia World Festival-A 2024"]
[Site "Orosei"]
[Date "2024.04.27"]
[Round "1.15"]
[White "Sonis, Francesco"]
[Black "Selbes, Tamer Tarik"]
[Result "1-0"]
[ECO "A17"]
[WhiteElo "2562"]
[BlackElo "2219"]
[Annotator "TA"]
[PlyCount "79"]
[EventDate "2024.04.26"]
[EventType "swiss"]
[EventCountry "ITA"]
[SourceTitle "playchess.com"]
[Source "ChessBase"]
[SourceQuality "1"]
[TimeControl "40/5400+30:1800+30"]

{[%evp 9,79,15,25,23,26,10,35,17,20,14,17,6,0,14,19,28,41,0,49,0,22,20,34,32,31,9,8,-58,-52,-39,-62,-67,-5,-33,-56,-28,0,0,0,0,0,0,-17,-10,0,-105,50,48,117,0,0,0,191,187,196,204,191,191,245,62,85,66,273,28,28,28,423,412,814,814,29998,29999]} 1. Nf3 {[%emt 0:00:03]} Nf6 {[%emt 0:00:09]} 2. c4 {[%emt 0:00:06]} e6 {[%emt 0:00:28]} 3. Nc3 {[%emt 0:00:46]} d5 {[%emt 0:01:33]} 4. e3 {[%emt 0:00:03]} a6 {[%emt 0:00:44]} 5. b3 {[%emt 0:00:15]} c5 {[%emt 0:00:45]} 6. cxd5 {[%emt 0:00:40]} exd5 {[%emt 0:00:30]} 7. Bb2 {[%emt 0:04:01]} Nc6 {[%emt 0:04:41]} 8. d4 {[%emt 0:00:28] White is slightly better.} Bg4 {[%emt 0:13:07]} 9. dxc5 {[%emt 0:08:07]} Bxc5 {[%emt 0:00:11]} 10. Be2 {[%emt 0:00:03]} O-O {[%emt 0:00:29]} 11. O-O {[%emt 0:00:05]} Ba7 {[%emt 0:04:31]} 12. h3 {[%emt 0:02:53]} Be6 {[%emt 0:10:41]} 13. Qb1 {[%emt 0:02:15]} Qd6 {[%emt 0:02:36]} (13... Re8 $11) 14. Rd1 {[%emt 0:01:06]} (14. Bd3 $14) 14... Rad8 {[%emt 0:00:27]} 15. Bd3 {[%emt 0:00:40]} Rfe8 {[%emt 0:06:34][%cal Oe6h3]} 16. Ne2 {[%emt 0:01:43]} Bc8 {[%emt 0:02:21]} 17. Ned4 {[%emt 0:16:09]} Ne4 {[%emt 0:06:24]} 18. Qc2 {[%emt 0:11:20]} (18. Nxc6 $11 bxc6 19. Qc2) 18... Nb4 $15 {[%emt 0:02:51]} 19. Qe2 {[%emt 0:00:02]} Nxd3 {[%emt 0:01:22]} 20. Rxd3 {[%emt 0:00:07]} f5 {[%emt 0:04:45]} (20... Bb8 $15) 21. Nc2 {[%emt 0:02:30]} f4 $36 {[%emt 0:00:47][%mdl 2048] aiming for ...Qg6. Black fights for an advantage.} 22. Rad1 {[%emt 0:07:41][%cal Ba1d1,Bd1d5,Bd5e5][%mdl 32] Threatens to win with Rxd5.} Qg6 {[%emt 0:05:16]} 23. Rxd5 {[%emt 0:10:14]} Rxd5 {[%emt 0:04:50]} (23... Bxh3 $2 24. Nh4 (24. Rxd8 $2 Qxg2#) 24... Qb6 25. Rxd8 (25. gxh3 Rxd5 26. Rxd5 fxe3 $18) 25... Rxd8 26. Qc4+ (26. gxh3 Ng5 $18) 26... Kh8 27. Rxd8+ Qxd8 28. Qxe4 $18 (28. gxh3 Ng5 $18)) 24. Rxd5 {[%emt 0:00:04]} fxe3 {[%emt 0:06:57]} 25. fxe3 {[%emt 0:04:17]} (25. Nxe3 Nxf2 (25... Bxh3 26. Re5 $16) 26. Re5 Nxh3+ 27. Kf1 Rf8 $17) 25... Bxh3 {[%emt 0:01:01]} 26. Re5 {[%emt 0:03:18]} Rc8 {[%emt 0:03:30]} 27. Ncd4 {[%emt 0:08:45] [#]} (27. Nce1 $1 $11 {remains equal.} Ng3 28. Qd3 Qxd3 29. Nxd3) 27... Bb8 $2 {[%emt 0:07:51]} ({Black should play} 27... Nf6 $1 $17 {Hoping for ...Bxd4.} 28. Ne1 Nd7) 28. Nh4 $14 {[%emt 0:05:25][%cal Bf3h4,Bh4f5,Bf5e7][%mdl 32] Excellent horsemanship.} Qg3 {[%emt 0:07:23]} (28... Ng3 $14 29. Nxg6 Nxe2+ 30. Nxe2 hxg6 31. gxh3 Bxe5 32. Bxe5 Rc2) 29. Ndf5 {[%emt 0:00:55] Some like it hot} (29. Rxe4 $16 {Ndf5 is the strong threat.} Qh2+ 30. Kf1) 29... Bxf5 $1 $11 {[%emt 0:00:46]} (29... Bxe5 $2 30. Nxg3 Nxg3 31. Qf3 $18) 30. Nxf5 {[%emt 0:00:11]} Qxe5 {[%emt 0:00:41]} (30... Bxe5 $2 31. Nxg3 Bxb2 32. Nxe4 $18) (30... Rc1+ $1 $11 {and Black has nothing to worry.} 31. Bxc1 Qxe5) 31. Bxe5 $18 {[%emt 0:00:21]} Rc1+ {[%emt 0:00:11]} 32. Kh2 {[%emt 0:00:06]} Bxe5+ {[%emt 0:00:05]} 33. g3 {[%emt 0:00:15]} g6 {[%emt 0:01:20] [#]} (33... Ng5 $142 34. Qg2 Bf6 35. Qd5+ (35. Qxb7 Rc2+ 36. Kg1 Rxa2 $18) 35... Kf8) 34. Ne7+ $2 {[%emt 0:01:49]} ({Weaker is} 34. Qd3 gxf5 35. Qd5+ Kf8 36. Qxe5 Rc2+ 37. Kg1 Rc1+ 38. Kh2 Rc2+ 39. Kh1 Rc1+ 40. Kg2 Rc2+ 41. Kg1 Rc1+ 42. Kg2 Rc2+ 43. Kh1 Rc1+ 44. Kg2 $11) (34. Nh6+ $1 $18 Kg7 35. Ng4) 34... Kg7 $14 {[%emt 0:00:51]} 35. Qd3 {[%emt 0:02:05]} Nxg3 {[%emt 0:00:49]} (35... Nf6 $1 $14) 36. Kg2 $2 {[%emt 0:00:09]} ({Better is} 36. Kh3 $18) 36... Rc7 $1 $11 {[%emt 0:00:29]} 37. Qd8 {[%emt 0:00:36][%mdl 1024] White has compensation.} Rc2+ $2 {[%emt 0:00:09][%mdl 8192]} (37... Ne4 $1 $11) 38. Kf3 $18 {[%emt 0:00:05]} Nh5 {[%emt 0:00:53] [#]} (38... Nh1 $142 39. Qg8+ Kh6) 39. Nf5+ $1 {[%emt 0:00:47][%mdl 512]} Kf7 {[%emt 0:00:30]} (39... gxf5 40. Qg5+) 40. Qe7+ {[%emt 0:00:03] Weighted Error Value: White=0.37/Black=0.56.  Loses game:     	---       	Black=3      Missed win:     	White=2     	---        Mistake:       	White=4     	Black=6      Inaccurate:     	White=2     	Black=2      OK:         	White=9     	Black=9      Best:        	White=7     	Black=3      Strong:       	---       	Black=2      Brilliant:      	White=1     	---} 1-0